Workbook

Sheet Sheet1
B1: Contour Diagrams of a Function
C3: This DIGMath module
C4: produces the contour map
C5: of any desired function
D6: z = f(x, y)
B7: on any interval for x and for y.
A9: Enter the function in terms of x and y: f(x, y) = | F9: x^4-y^4
A12: Enter the interval for x:
C13: xMin = | D13: -3
C14: xMax = | D14: 3
A16: Now enter the interval for y:
C17: yMin = | D17: -3
C18: yMax = | D18: 3
I19: The contours for the function z =f(x, y) = | M19: =F9 -> x^4-y^4
A21: Click each item below for suggestions and investigations | J21: x (horizontal) from x = | L21: =xMin -> -3 | M21: to x = | N21: =xMax -> 3
B22: Item 1
B23: Item 2 | J23: y (vertical) from y = | L23: =yMin -> -3 | M23: to y = | N23: =yMax -> 3
B24: Item 3
J25: z ("heights") from z = | L25: =zMin -> -81 | M25: to y = | N25: =zMax -> 81
A28: To access/download all the DIGMath Apps for Calculus
A29: Click this link: | C29: DIGMath for Calculus
A31: Created by: Sheldon P. Gordon
A32: Farmingdale State College
A33: Development of this module was supported by the
A34: NSF's Division of Undergraduate Education
A35: under grants DUE-0310123 and DUE-0442160.

Sheet Sheet2
C1: x | D1: y's
D2: =yMin -> -3 | E2: =D2+dy -> -2.88 | F2: -2.76 | G2: -2.64 | H2: -2.52 | I2: -2.4 | J2: -2.28 | K2: -2.16 | L2: -2.04 | M2: -1.92 | N2: -1.8 | O2: -1.68 | P2: -1.56 | Q2: -1.44 | R2: -1.32 | S2: -1.2 | T2: -1.08 | U2: -0.96 | V2: -0.84 | W2: -0.72 | X2: -0.6 | Y2: -0.48 | Z2: -0.36 | AA2: -0.24 | AB2: -0.12 | AC2: 1.665334537e-15 | AD2: 0.12 | AE2: 0.24 | AF2: 0.36 | AG2: 0.48 | AH2: 0.6 | AI2: 0.72 | AJ2: 0.84 | AK2: =AJ2+dy -> 0.96 | AL2: 1.08 | AM2: 1.2 | AN2: 1.32 | AO2: 1.44 | AP2: 1.56 | AQ2: 1.68 | AR2: 1.8 | AS2: 1.92 | AT2: 2.04 | AU2: 2.16 | AV2: 2.28 | AW2: 2.4 | AX2: 2.52 | AY2: 2.64 | AZ2: 2.76 | BA2: 2.88 | BB2: 3
C3: =Sheet1!D13 -> -3 | D3: =x^4-y^4 -> 0 | E3: -12.20292864 | F3: -22.97217024 | G3: -32.42467584 | H3: -40.67241984 | I3: -47.8224 | J3: -53.97663744 | K3: -59.23217664 | L3: -63.68108544 | M3: -67.41045504 | N3: =x^4-y^4 -> -70.5024 | O3: -73.03405824 | P3: -75.07759104 | Q3: -76.70018304 | R3: -77.96404224 | S3: -78.9264 | T3: -79.63951104 | U3: -80.15065344 | V3: -80.50212864 | W3: -80.73126144 | X3: =x^4-y^4 -> -80.8704 | Y3: -80.94691584 | Z3: -80.98320384 | AA3: -80.99668224 | AB3: -80.99979264 | AC3: -81 | AD3: -80.99979264 | AE3: -80.99668224 | AF3: -80.98320384 | AG3: -80.94691584 | AH3: =x^4-y^4 -> -80.8704 | AI3: -80.73126144 | AJ3: -80.50212864 | AK3: -80.15065344 | AL3: -79.63951104 | AM3: -78.9264 | AN3: -77.96404224 | AO3: -76.70018304 | AP3: -75.07759104 | AQ3: -73.03405824 | AR3: =x^4-y^4 -> -70.5024 | AS3: -67.41045504 | AT3: -63.68108544 | AU3: -59.23217664 | AV3: -53.97663744 | AW3: -47.8224 | AX3: -40.67241984 | AY3: -32.42467584 | AZ3: -22.97217024 | BA3: -12.20292864 | BB3: =x^4-y^4 -> 3.126388037e-13 | BL3: =x^4-y^4 ->  | BV3: =x^4-y^4 ->  | CF3: =x^4-y^4 ->  | CP3: =x^4-y^4 ->  | CZ3: =x^4-y^4 ->  | DJ3: =x^4-y^4 ->  | DT3: =x^4-y^4 ->  | ED3: =x^4-y^4 ->  | EN3: =x^4-y^4 ->  | EX3: =x^4-y^4 ->  | FH3: =x^4-y^4 ->  | FR3: =x^4-y^4 ->  | GB3: =x^4-y^4 ->  | GL3: =x^4-y^4 -> 
C4: =C3+Sheet2!B$13 -> -2.88 | D4: 12.20292864 | E4: 0 | F4: -10.7692416 | G4: -20.2217472 | H4: -28.4694912 | I4: -35.61947136 | J4: -41.7737088 | K4: -47.029248 | L4: -51.4781568 | M4: -55.2075264 | N4: -58.29947136 | O4: -60.8311296 | P4: -62.8746624 | Q4: -64.4972544 | R4: -65.7611136 | S4: -66.72347136 | T4: -67.4365824 | U4: -67.9477248 | V4: -68.2992 | W4: -68.5283328 | X4: -68.66747136 | Y4: -68.7439872 | Z4: -68.7802752 | AA4: -68.7937536 | AB4: -68.796864 | AC4: -68.79707136 | AD4: -68.796864 | AE4: -68.7937536 | AF4: -68.7802752 | AG4: -68.7439872 | AH4: -68.66747136 | AI4: -68.5283328 | AJ4: -68.2992 | AK4: -67.9477248 | AL4: -67.4365824 | AM4: -66.72347136 | AN4: -65.7611136 | AO4: -64.4972544 | AP4: -62.8746624 | AQ4: -60.8311296 | AR4: -58.29947136 | AS4: -55.2075264 | AT4: -51.4781568 | AU4: -47.029248 | AV4: -41.7737088 | AW4: -35.61947136 | AX4: -28.4694912 | AY4: -20.2217472 | AZ4: -10.7692416 | BA4: 2.98427949e-13 | BB4: 12.20292864
C5: =C4+Sheet2!B$13 -> -2.76 | D5: 22.97217024 | E5: 10.7692416 | F5: 0 | G5: -9.4525056 | H5: -17.7002496 | I5: -24.85022976 | J5: -31.0044672 | K5: -36.2600064 | L5: -40.7089152 | M5: -44.4382848 | N5: -47.53022976 | O5: -50.061888 | P5: -52.1054208 | Q5: -53.7280128 | R5: -54.991872 | S5: -55.95422976 | T5: -56.6673408 | U5: -57.1784832 | V5: -57.5299584 | W5: -57.7590912 | X5: -57.89822976 | Y5: -57.9747456 | Z5: -58.0110336 | AA5: -58.024512 | AB5: -58.0276224 | AC5: -58.02782976 | AD5: -58.0276224 | AE5: -58.024512 | AF5: -58.0110336 | AG5: -57.9747456 | AH5: -57.89822976 | AI5: -57.7590912 | AJ5: -57.5299584 | AK5: -57.1784832 | AL5: -56.6673408 | AM5: -55.95422976 | AN5: -54.991872 | AO5: -53.7280128 | AP5: -52.1054208 | AQ5: -50.061888 | AR5: -47.53022976 | AS5: -44.4382848 | AT5: -40.7089152 | AU5: -36.2600064 | AV5: -31.0044672 | AW5: -24.85022976 | AX5: -17.7002496 | AY5: -9.4525056 | AZ5: 2.700062396e-13 | BA5: 10.7692416 | BB5: 22.97217024
C6: =C5+Sheet2!B$13 -> -2.64 | D6: 32.42467584 | E6: 20.2217472 | F6: 9.4525056 | G6: 0 | H6: -8.247744 | I6: -15.39772416 | J6: -21.5519616 | K6: -26.8075008 | L6: -31.2564096 | M6: -34.9857792 | N6: -38.07772416 | O6: -40.6093824 | P6: -42.6529152 | Q6: -44.2755072 | R6: -45.5393664 | S6: -46.50172416 | T6: -47.2148352 | U6: -47.7259776 | V6: -48.0774528 | W6: -48.3065856 | X6: -48.44572416 | Y6: -48.52224 | Z6: -48.558528 | AA6: -48.5720064 | AB6: -48.5751168 | AC6: -48.57532416 | AD6: -48.5751168 | AE6: -48.5720064 | AF6: -48.558528 | AG6: -48.52224 | AH6: -48.44572416 | AI6: -48.3065856 | AJ6: -48.0774528 | AK6: -47.7259776 | AL6: -47.2148352 | AM6: -46.50172416 | AN6: -45.5393664 | AO6: -44.2755072 | AP6: -42.6529152 | AQ6: -40.6093824 | AR6: -38.07772416 | AS6: -34.9857792 | AT6: -31.2564096 | AU6: -26.8075008 | AV6: -21.5519616 | AW6: -15.39772416 | AX6: -8.247744 | AY6: 2.344791028e-13 | AZ6: 9.4525056 | BA6: 20.2217472 | BB6: 32.42467584
C7: =C6+Sheet2!B$13 -> -2.52 | D7: 40.67241984 | E7: 28.4694912 | F7: 17.7002496 | G7: 8.247744 | H7: 0 | I7: -7.14998016 | J7: -13.3042176 | K7: -18.5597568 | L7: -23.0086656 | M7: -26.7380352 | N7: -29.82998016 | O7: -32.3616384 | P7: -34.4051712 | Q7: -36.0277632 | R7: -37.2916224 | S7: -38.25398016 | T7: -38.9670912 | U7: -39.4782336 | V7: -39.8297088 | W7: -40.0588416 | X7: -40.19798016 | Y7: -40.274496 | Z7: -40.310784 | AA7: -40.3242624 | AB7: -40.3273728 | AC7: -40.32758016 | AD7: -40.3273728 | AE7: -40.3242624 | AF7: -40.310784 | AG7: -40.274496 | AH7: -40.19798016 | AI7: -40.0588416 | AJ7: -39.8297088 | AK7: -39.4782336 | AL7: -38.9670912 | AM7: -38.25398016 | AN7: -37.2916224 | AO7: -36.0277632 | AP7: -34.4051712 | AQ7: -32.3616384 | AR7: -29.82998016 | AS7: -26.7380352 | AT7: -23.0086656 | AU7: -18.5597568 | AV7: -13.3042176 | AW7: -7.14998016 | AX7: 1.98951966e-13 | AY7: 8.247744 | AZ7: 17.7002496 | BA7: 28.4694912 | BB7: 40.67241984
C8: =C7+Sheet2!B$13 -> -2.4 | D8: 47.8224 | E8: 35.61947136 | F8: 24.85022976 | G8: 15.39772416 | H8: 7.14998016 | I8: 0 | J8: -6.15423744 | K8: -11.40977664 | L8: -15.85868544 | M8: -19.58805504 | N8: -22.68 | O8: -25.21165824 | P8: -27.25519104 | Q8: -28.87778304 | R8: -30.14164224 | S8: -31.104 | T8: -31.81711104 | U8: -32.32825344 | V8: -32.67972864 | W8: -32.90886144 | X8: -33.048 | Y8: -33.12451584 | Z8: -33.16080384 | AA8: -33.17428224 | AB8: -33.17739264 | AC8: -33.1776 | AD8: -33.17739264 | AE8: -33.17428224 | AF8: -33.16080384 | AG8: -33.12451584 | AH8: -33.048 | AI8: -32.90886144 | AJ8: -32.67972864 | AK8: -32.32825344 | AL8: -31.81711104 | AM8: -31.104 | AN8: -30.14164224 | AO8: -28.87778304 | AP8: -27.25519104 | AQ8: -25.21165824 | AR8: -22.68 | AS8: -19.58805504 | AT8: -15.85868544 | AU8: -11.40977664 | AV8: -6.15423744 | AW8: 1.705302566e-13 | AX8: 7.14998016 | AY8: 15.39772416 | AZ8: 24.85022976 | BA8: 35.61947136 | BB8: 47.8224
C9: =C8+Sheet2!B$13 -> -2.28 | D9: 53.97663744 | E9: 41.7737088 | F9: 31.0044672 | G9: 21.5519616 | H9: 13.3042176 | I9: 6.15423744 | J9: 0 | K9: -5.2555392 | L9: -9.704448 | M9: -13.4338176 | N9: -16.52576256 | O9: -19.0574208 | P9: -21.1009536 | Q9: -22.7235456 | R9: -23.9874048 | S9: -24.94976256 | T9: -25.6628736 | U9: -26.174016 | V9: -26.5254912 | W9: -26.754624 | X9: -26.89376256 | Y9: -26.9702784 | Z9: -27.0065664 | AA9: -27.0200448 | AB9: -27.0231552 | AC9: -27.02336256 | AD9: -27.0231552 | AE9: -27.0200448 | AF9: -27.0065664 | AG9: -26.9702784 | AH9: -26.89376256 | AI9: -26.754624 | AJ9: -26.5254912 | AK9: -26.174016 | AL9: -25.6628736 | AM9: -24.94976256 | AN9: -23.9874048 | AO9: -22.7235456 | AP9: -21.1009536 | AQ9: -19.0574208 | AR9: -16.52576256 | AS9: -13.4338176 | AT9: -9.704448 | AU9: -5.2555392 | AV9: 1.492139745e-13 | AW9: 6.15423744 | AX9: 13.3042176 | AY9: 21.5519616 | AZ9: 31.0044672 | BA9: 41.7737088 | BB9: 53.97663744
C10: =C9+Sheet2!B$13 -> -2.16 | D10: 59.23217664 | E10: 47.029248 | F10: 36.2600064 | G10: 26.8075008 | H10: 18.5597568 | I10: 11.40977664 | J10: 5.2555392 | K10: 0 | L10: -4.4489088 | M10: -8.1782784 | N10: -11.27022336 | O10: -13.8018816 | P10: -15.8454144 | Q10: -17.4680064 | R10: -18.7318656 | S10: -19.69422336 | T10: -20.4073344 | U10: -20.9184768 | V10: -21.269952 | W10: -21.4990848 | X10: -21.63822336 | Y10: -21.7147392 | Z10: -21.7510272 | AA10: -21.7645056 | AB10: -21.767616 | AC10: -21.76782336 | AD10: -21.767616 | AE10: -21.7645056 | AF10: -21.7510272 | AG10: -21.7147392 | AH10: -21.63822336 | AI10: -21.4990848 | AJ10: -21.269952 | AK10: -20.9184768 | AL10: -20.4073344 | AM10: -19.69422336 | AN10: -18.7318656 | AO10: -17.4680064 | AP10: -15.8454144 | AQ10: -13.8018816 | AR10: -11.27022336 | AS10: -8.1782784 | AT10: -4.4489088 | AU10: 1.243449788e-13 | AV10: 5.2555392 | AW10: 11.40977664 | AX10: 18.5597568 | AY10: 26.8075008 | AZ10: 36.2600064 | BA10: 47.029248 | BB10: 59.23217664
C11: =C10+Sheet2!B$13 -> -2.04 | D11: 63.68108544 | E11: 51.4781568 | F11: 40.7089152 | G11: 31.2564096 | H11: 23.0086656 | I11: 15.85868544 | J11: 9.704448 | K11: 4.4489088 | L11: 0 | M11: -3.7293696 | N11: -6.82131456 | O11: -9.3529728 | P11: -11.3965056 | Q11: -13.0190976 | R11: -14.2829568 | S11: -15.24531456 | T11: -15.9584256 | U11: -16.469568 | V11: -16.8210432 | W11: -17.050176 | X11: -17.18931456 | Y11: -17.2658304 | Z11: -17.3021184 | AA11: -17.3155968 | AB11: -17.3187072 | AC11: -17.31891456 | AD11: -17.3187072 | AE11: -17.3155968 | AF11: -17.3021184 | AG11: -17.2658304 | AH11: -17.18931456 | AI11: -17.050176 | AJ11: -16.8210432 | AK11: -16.469568 | AL11: -15.9584256 | AM11: -15.24531456 | AN11: -14.2829568 | AO11: -13.0190976 | AP11: -11.3965056 | AQ11: -9.3529728 | AR11: -6.82131456 | AS11: -3.7293696 | AT11: 1.030286967e-13 | AU11: 4.4489088 | AV11: 9.704448 | AW11: 15.85868544 | AX11: 23.0086656 | AY11: 31.2564096 | AZ11: 40.7089152 | BA11: 51.4781568 | BB11: 63.68108544
C12: =C11+Sheet2!B$13 -> -1.92 | D12: 67.41045504 | E12: 55.2075264 | F12: 44.4382848 | G12: 34.9857792 | H12: 26.7380352 | I12: 19.58805504 | J12: 13.4338176 | K12: 8.1782784 | L12: 3.7293696 | M12: 0 | N12: -3.09194496 | O12: -5.6236032 | P12: -7.667136 | Q12: -9.289728 | R12: -10.5535872 | S12: -11.51594496 | T12: -12.229056 | U12: -12.7401984 | V12: -13.0916736 | W12: -13.3208064 | X12: -13.45994496 | Y12: -13.5364608 | Z12: -13.5727488 | AA12: -13.5862272 | AB12: -13.5893376 | AC12: -13.58954496 | AD12: -13.5893376 | AE12: -13.5862272 | AF12: -13.5727488 | AG12: -13.5364608 | AH12: -13.45994496 | AI12: -13.3208064 | AJ12: -13.0916736 | AK12: -12.7401984 | AL12: -12.229056 | AM12: -11.51594496 | AN12: -10.5535872 | AO12: -9.289728 | AP12: -7.667136 | AQ12: -5.6236032 | AR12: -3.09194496 | AS12: 8.881784197e-14 | AT12: 3.7293696 | AU12: 8.1782784 | AV12: 13.4338176 | AW12: 19.58805504 | AX12: 26.7380352 | AY12: 34.9857792 | AZ12: 44.4382848 | BA12: 55.2075264 | BB12: 67.41045504
A13: delta x = | B13: =(xMax-xMin)/50 -> 0.12 | C13: =C12+Sheet2!B$13 -> -1.8 | D13: =x^4-y^4 -> 70.5024 | E13: 58.29947136 | F13: 47.53022976 | G13: 38.07772416 | H13: 29.82998016 | I13: 22.68 | J13: 16.52576256 | K13: 11.27022336 | L13: 6.82131456 | M13: 3.09194496 | N13: =x^4-y^4 -> 0 | O13: -2.53165824 | P13: -4.57519104 | Q13: -6.19778304 | R13: -7.46164224 | S13: -8.424 | T13: -9.13711104 | U13: -9.64825344 | V13: -9.99972864 | W13: -10.22886144 | X13: =x^4-y^4 -> -10.368 | Y13: -10.44451584 | Z13: -10.48080384 | AA13: -10.49428224 | AB13: -10.49739264 | AC13: -10.4976 | AD13: -10.49739264 | AE13: -10.49428224 | AF13: -10.48080384 | AG13: -10.44451584 | AH13: =x^4-y^4 -> -10.368 | AI13: -10.22886144 | AJ13: -9.99972864 | AK13: -9.64825344 | AL13: -9.13711104 | AM13: -8.424 | AN13: -7.46164224 | AO13: -6.19778304 | AP13: -4.57519104 | AQ13: -2.53165824 | AR13: =x^4-y^4 -> 7.283063042e-14 | AS13: 3.09194496 | AT13: 6.82131456 | AU13: 11.27022336 | AV13: 16.52576256 | AW13: 22.68 | AX13: 29.82998016 | AY13: 38.07772416 | AZ13: 47.53022976 | BA13: 58.29947136 | BB13: =x^4-y^4 -> 70.5024 | BL13: =x^4-y^4 ->  | BV13: =x^4-y^4 ->  | CF13: =x^4-y^4 ->  | CP13: =x^4-y^4 ->  | CZ13: =x^4-y^4 ->  | DJ13: =x^4-y^4 ->  | DT13: =x^4-y^4 ->  | ED13: =x^4-y^4 ->  | EN13: =x^4-y^4 ->  | EX13: =x^4-y^4 ->  | FH13: =x^4-y^4 ->  | FR13: =x^4-y^4 ->  | GB13: =x^4-y^4 ->  | GL13: =x^4-y^4 -> 
A14: delta y = | B14: =(yMax-yMin)/50 -> 0.12 | C14: =C13+Sheet2!B$13 -> -1.68 | D14: 73.03405824 | E14: 60.8311296 | F14: 50.061888 | G14: 40.6093824 | H14: 32.3616384 | I14: 25.21165824 | J14: 19.0574208 | K14: 13.8018816 | L14: 9.3529728 | M14: 5.6236032 | N14: 2.53165824 | O14: 0 | P14: -2.0435328 | Q14: -3.6661248 | R14: -4.929984 | S14: -5.89234176 | T14: -6.6054528 | U14: -7.1165952 | V14: -7.4680704 | W14: -7.6972032 | X14: -7.83634176 | Y14: -7.9128576 | Z14: -7.9491456 | AA14: -7.962624 | AB14: -7.9657344 | AC14: -7.96594176 | AD14: -7.9657344 | AE14: -7.962624 | AF14: -7.9491456 | AG14: -7.9128576 | AH14: -7.83634176 | AI14: -7.6972032 | AJ14: -7.4680704 | AK14: -7.1165952 | AL14: -6.6054528 | AM14: -5.89234176 | AN14: -4.929984 | AO14: -3.6661248 | AP14: -2.0435328 | AQ14: 6.039613254e-14 | AR14: 2.53165824 | AS14: 5.6236032 | AT14: 9.3529728 | AU14: 13.8018816 | AV14: 19.0574208 | AW14: 25.21165824 | AX14: 32.3616384 | AY14: 40.6093824 | AZ14: 50.061888 | BA14: 60.8311296 | BB14: 73.03405824
C15: =C14+Sheet2!B$13 -> -1.56 | D15: 75.07759104 | E15: 62.8746624 | F15: 52.1054208 | G15: 42.6529152 | H15: 34.4051712 | I15: 27.25519104 | J15: 21.1009536 | K15: 15.8454144 | L15: 11.3965056 | M15: 7.667136 | N15: 4.57519104 | O15: 2.0435328 | P15: 0 | Q15: -1.622592 | R15: -2.8864512 | S15: -3.84880896 | T15: -4.56192 | U15: -5.0730624 | V15: -5.4245376 | W15: -5.6536704 | X15: -5.79280896 | Y15: -5.8693248 | Z15: -5.9056128 | AA15: -5.9190912 | AB15: -5.9222016 | AC15: -5.92240896 | AD15: -5.9222016 | AE15: -5.9190912 | AF15: -5.9056128 | AG15: -5.8693248 | AH15: -5.79280896 | AI15: -5.6536704 | AJ15: -5.4245376 | AK15: -5.0730624 | AL15: -4.56192 | AM15: -3.84880896 | AN15: -2.8864512 | AO15: -1.622592 | AP15: 4.52970994e-14 | AQ15: 2.0435328 | AR15: 4.57519104 | AS15: 7.667136 | AT15: 11.3965056 | AU15: 15.8454144 | AV15: 21.1009536 | AW15: 27.25519104 | AX15: 34.4051712 | AY15: 42.6529152 | AZ15: 52.1054208 | BA15: 62.8746624 | BB15: 75.07759104
A16: zMin = | B16: =MIN(D3:BB52) -> -81 | C16: =C15+Sheet2!B$13 -> -1.44 | D16: 76.70018304 | E16: 64.4972544 | F16: 53.7280128 | G16: 44.2755072 | H16: 36.0277632 | I16: 28.87778304 | J16: 22.7235456 | K16: 17.4680064 | L16: 13.0190976 | M16: 9.289728 | N16: 6.19778304 | O16: 3.6661248 | P16: 1.622592 | Q16: 0 | R16: -1.2638592 | S16: -2.22621696 | T16: -2.939328 | U16: -3.4504704 | V16: -3.8019456 | W16: -4.0310784 | X16: -4.17021696 | Y16: -4.2467328 | Z16: -4.2830208 | AA16: -4.2964992 | AB16: -4.2996096 | AC16: -4.29981696 | AD16: -4.2996096 | AE16: -4.2964992 | AF16: -4.2830208 | AG16: -4.2467328 | AH16: -4.17021696 | AI16: -4.0310784 | AJ16: -3.8019456 | AK16: -3.4504704 | AL16: -2.939328 | AM16: -2.22621696 | AN16: -1.2638592 | AO16: 3.641531521e-14 | AP16: 1.622592 | AQ16: 3.6661248 | AR16: 6.19778304 | AS16: 9.289728 | AT16: 13.0190976 | AU16: 17.4680064 | AV16: 22.7235456 | AW16: 28.87778304 | AX16: 36.0277632 | AY16: 44.2755072 | AZ16: 53.7280128 | BA16: 64.4972544 | BB16: 76.70018304
A17: zMax = | B17: =MAX(D3:BB52) -> 81 | C17: =C16+Sheet2!B$13 -> -1.32 | D17: 77.96404224 | E17: 65.7611136 | F17: 54.991872 | G17: 45.5393664 | H17: 37.2916224 | I17: 30.14164224 | J17: 23.9874048 | K17: 18.7318656 | L17: 14.2829568 | M17: 10.5535872 | N17: 7.46164224 | O17: 4.929984 | P17: 2.8864512 | Q17: 1.2638592 | R17: 0 | S17: -0.96235776 | T17: -1.6754688 | U17: -2.1866112 | V17: -2.5380864 | W17: -2.7672192 | X17: -2.90635776 | Y17: -2.9828736 | Z17: -3.0191616 | AA17: -3.03264 | AB17: -3.0357504 | AC17: -3.03595776 | AD17: -3.0357504 | AE17: -3.03264 | AF17: -3.0191616 | AG17: -2.9828736 | AH17: -2.90635776 | AI17: -2.7672192 | AJ17: -2.5380864 | AK17: -2.1866112 | AL17: -1.6754688 | AM17: -0.96235776 | AN17: 2.886579864e-14 | AO17: 1.2638592 | AP17: 2.8864512 | AQ17: 4.929984 | AR17: 7.46164224 | AS17: 10.5535872 | AT17: 14.2829568 | AU17: 18.7318656 | AV17: 23.9874048 | AW17: 30.14164224 | AX17: 37.2916224 | AY17: 45.5393664 | AZ17: 54.991872 | BA17: 65.7611136 | BB17: 77.96404224
C18: =C17+Sheet2!B$13 -> -1.2 | D18: 78.9264 | E18: 66.72347136 | F18: 55.95422976 | G18: 46.50172416 | H18: 38.25398016 | I18: 31.104 | J18: 24.94976256 | K18: 19.69422336 | L18: 15.24531456 | M18: 11.51594496 | N18: 8.424 | O18: 5.89234176 | P18: 3.84880896 | Q18: 2.22621696 | R18: 0.96235776 | S18: 0 | T18: -0.71311104 | U18: -1.22425344 | V18: -1.57572864 | W18: -1.80486144 | X18: -1.944 | Y18: -2.02051584 | Z18: -2.05680384 | AA18: -2.07028224 | AB18: -2.07339264 | AC18: -2.0736 | AD18: -2.07339264 | AE18: -2.07028224 | AF18: -2.05680384 | AG18: -2.02051584 | AH18: -1.944 | AI18: -1.80486144 | AJ18: -1.57572864 | AK18: -1.22425344 | AL18: -0.71311104 | AM18: 2.176037128e-14 | AN18: 0.96235776 | AO18: 2.22621696 | AP18: 3.84880896 | AQ18: 5.89234176 | AR18: 8.424 | AS18: 11.51594496 | AT18: 15.24531456 | AU18: 19.69422336 | AV18: 24.94976256 | AW18: 31.104 | AX18: 38.25398016 | AY18: 46.50172416 | AZ18: 55.95422976 | BA18: 66.72347136 | BB18: 78.9264
C19: =C18+Sheet2!B$13 -> -1.08 | D19: 79.63951104 | E19: 67.4365824 | F19: 56.6673408 | G19: 47.2148352 | H19: 38.9670912 | I19: 31.81711104 | J19: 25.6628736 | K19: 20.4073344 | L19: 15.9584256 | M19: 12.229056 | N19: 9.13711104 | O19: 6.6054528 | P19: 4.56192 | Q19: 2.939328 | R19: 1.6754688 | S19: 0.71311104 | T19: 0 | U19: -0.5111424 | V19: -0.8626176 | W19: -1.0917504 | X19: -1.23088896 | Y19: -1.3074048 | Z19: -1.3436928 | AA19: -1.3571712 | AB19: -1.3602816 | AC19: -1.36048896 | AD19: -1.3602816 | AE19: -1.3571712 | AF19: -1.3436928 | AG19: -1.3074048 | AH19: -1.23088896 | AI19: -1.0917504 | AJ19: -0.8626176 | AK19: -0.5111424 | AL19: 1.665334537e-14 | AM19: 0.71311104 | AN19: 1.6754688 | AO19: 2.939328 | AP19: 4.56192 | AQ19: 6.6054528 | AR19: 9.13711104 | AS19: 12.229056 | AT19: 15.9584256 | AU19: 20.4073344 | AV19: 25.6628736 | AW19: 31.81711104 | AX19: 38.9670912 | AY19: 47.2148352 | AZ19: 56.6673408 | BA19: 67.4365824 | BB19: 79.63951104
C20: =C19+Sheet2!B$13 -> -0.96 | D20: 80.15065344 | E20: 67.9477248 | F20: 57.1784832 | G20: 47.7259776 | H20: 39.4782336 | I20: 32.32825344 | J20: 26.174016 | K20: 20.9184768 | L20: 16.469568 | M20: 12.7401984 | N20: 9.64825344 | O20: 7.1165952 | P20: 5.0730624 | Q20: 3.4504704 | R20: 2.1866112 | S20: 1.22425344 | T20: 0.5111424 | U20: 0 | V20: -0.3514752 | W20: -0.580608 | X20: -0.71974656 | Y20: -0.7962624 | Z20: -0.8325504 | AA20: -0.8460288 | AB20: -0.8491392 | AC20: -0.84934656 | AD20: -0.8491392 | AE20: -0.8460288 | AF20: -0.8325504 | AG20: -0.7962624 | AH20: -0.71974656 | AI20: -0.580608 | AJ20: -0.3514752 | AK20: 1.165734176e-14 | AL20: 0.5111424 | AM20: 1.22425344 | AN20: 2.1866112 | AO20: 3.4504704 | AP20: 5.0730624 | AQ20: 7.1165952 | AR20: 9.64825344 | AS20: 12.7401984 | AT20: 16.469568 | AU20: 20.9184768 | AV20: 26.174016 | AW20: 32.32825344 | AX20: 39.4782336 | AY20: 47.7259776 | AZ20: 57.1784832 | BA20: 67.9477248 | BB20: 80.15065344
C21: =C20+Sheet2!B$13 -> -0.84 | D21: 80.50212864 | E21: 68.2992 | F21: 57.5299584 | G21: 48.0774528 | H21: 39.8297088 | I21: 32.67972864 | J21: 26.5254912 | K21: 21.269952 | L21: 16.8210432 | M21: 13.0916736 | N21: 9.99972864 | O21: 7.4680704 | P21: 5.4245376 | Q21: 3.8019456 | R21: 2.5380864 | S21: 1.57572864 | T21: 0.8626176 | U21: 0.3514752 | V21: 0 | W21: -0.2291328 | X21: -0.36827136 | Y21: -0.4447872 | Z21: -0.4810752 | AA21: -0.4945536 | AB21: -0.497664 | AC21: -0.49787136 | AD21: -0.497664 | AE21: -0.4945536 | AF21: -0.4810752 | AG21: -0.4447872 | AH21: -0.36827136 | AI21: -0.2291328 | AJ21: 7.993605777e-15 | AK21: 0.3514752 | AL21: 0.8626176 | AM21: 1.57572864 | AN21: 2.5380864 | AO21: 3.8019456 | AP21: 5.4245376 | AQ21: 7.4680704 | AR21: 9.99972864 | AS21: 13.0916736 | AT21: 16.8210432 | AU21: 21.269952 | AV21: 26.5254912 | AW21: 32.67972864 | AX21: 39.8297088 | AY21: 48.0774528 | AZ21: 57.5299584 | BA21: 68.2992 | BB21: 80.50212864
C22: =C21+Sheet2!B$13 -> -0.72 | D22: 80.73126144 | E22: 68.5283328 | F22: 57.7590912 | G22: 48.3065856 | H22: 40.0588416 | I22: 32.90886144 | J22: 26.754624 | K22: 21.4990848 | L22: 17.050176 | M22: 13.3208064 | N22: 10.22886144 | O22: 7.6972032 | P22: 5.6536704 | Q22: 4.0310784 | R22: 2.7672192 | S22: 1.80486144 | T22: 1.0917504 | U22: 0.580608 | V22: 0.2291328 | W22: 0 | X22: -0.13913856 | Y22: -0.2156544 | Z22: -0.2519424 | AA22: -0.2654208 | AB22: -0.2685312 | AC22: -0.26873856 | AD22: -0.2685312 | AE22: -0.2654208 | AF22: -0.2519424 | AG22: -0.2156544 | AH22: -0.13913856 | AI22: 5.051514762e-15 | AJ22: 0.2291328 | AK22: 0.580608 | AL22: 1.0917504 | AM22: 1.80486144 | AN22: 2.7672192 | AO22: 4.0310784 | AP22: 5.6536704 | AQ22: 7.6972032 | AR22: 10.22886144 | AS22: 13.3208064 | AT22: 17.050176 | AU22: 21.4990848 | AV22: 26.754624 | AW22: 32.90886144 | AX22: 40.0588416 | AY22: 48.3065856 | AZ22: 57.7590912 | BA22: 68.5283328 | BB22: 80.73126144
C23: =C22+Sheet2!B$13 -> -0.6 | D23: =x^4-y^4 -> 80.8704 | E23: 68.66747136 | F23: 57.89822976 | G23: 48.44572416 | H23: 40.19798016 | I23: 33.048 | J23: 26.89376256 | K23: 21.63822336 | L23: 17.18931456 | M23: 13.45994496 | N23: =x^4-y^4 -> 10.368 | O23: 7.83634176 | P23: 5.79280896 | Q23: 4.17021696 | R23: 2.90635776 | S23: 1.944 | T23: 1.23088896 | U23: 0.71974656 | V23: 0.36827136 | W23: 0.13913856 | X23: =x^4-y^4 -> 0 | Y23: -0.07651584 | Z23: -0.11280384 | AA23: -0.12628224 | AB23: -0.12939264 | AC23: -0.1296 | AD23: -0.12939264 | AE23: -0.12628224 | AF23: -0.11280384 | AG23: -0.07651584 | AH23: =x^4-y^4 -> 2.886579864e-15 | AI23: 0.13913856 | AJ23: 0.36827136 | AK23: 0.71974656 | AL23: 1.23088896 | AM23: 1.944 | AN23: 2.90635776 | AO23: 4.17021696 | AP23: 5.79280896 | AQ23: 7.83634176 | AR23: =x^4-y^4 -> 10.368 | AS23: 13.45994496 | AT23: 17.18931456 | AU23: 21.63822336 | AV23: 26.89376256 | AW23: 33.048 | AX23: 40.19798016 | AY23: 48.44572416 | AZ23: 57.89822976 | BA23: 68.66747136 | BB23: =x^4-y^4 -> 80.8704 | BL23: =x^4-y^4 ->  | BV23: =x^4-y^4 ->  | CF23: =x^4-y^4 ->  | CP23: =x^4-y^4 ->  | CZ23: =x^4-y^4 ->  | DJ23: =x^4-y^4 ->  | DT23: =x^4-y^4 ->  | ED23: =x^4-y^4 ->  | EN23: =x^4-y^4 ->  | EX23: =x^4-y^4 ->  | FH23: =x^4-y^4 ->  | FR23: =x^4-y^4 ->  | GB23: =x^4-y^4 ->  | GL23: =x^4-y^4 -> 
C24: =C23+Sheet2!B$13 -> -0.48 | D24: 80.94691584 | E24: 68.7439872 | F24: 57.9747456 | G24: 48.52224 | H24: 40.274496 | I24: 33.12451584 | J24: 26.9702784 | K24: 21.7147392 | L24: 17.2658304 | M24: 13.5364608 | N24: 10.44451584 | O24: 7.9128576 | P24: 5.8693248 | Q24: 4.2467328 | R24: 2.9828736 | S24: 2.02051584 | T24: 1.3074048 | U24: 0.7962624 | V24: 0.4447872 | W24: 0.2156544 | X24: 0.07651584 | Y24: 0 | Z24: -0.036288 | AA24: -0.0497664 | AB24: -0.0528768 | AC24: -0.05308416 | AD24: -0.0528768 | AE24: -0.0497664 | AF24: -0.036288 | AG24: 1.471045508e-15 | AH24: 0.07651584 | AI24: 0.2156544 | AJ24: 0.4447872 | AK24: 0.7962624 | AL24: 1.3074048 | AM24: 2.02051584 | AN24: 2.9828736 | AO24: 4.2467328 | AP24: 5.8693248 | AQ24: 7.9128576 | AR24: 10.44451584 | AS24: 13.5364608 | AT24: 17.2658304 | AU24: 21.7147392 | AV24: 26.9702784 | AW24: 33.12451584 | AX24: 40.274496 | AY24: 48.52224 | AZ24: 57.9747456 | BA24: 68.7439872 | BB24: 80.94691584
C25: =C24+Sheet2!B$13 -> -0.36 | D25: 80.98320384 | E25: 68.7802752 | F25: 58.0110336 | G25: 48.558528 | H25: 40.310784 | I25: 33.16080384 | J25: 27.0065664 | K25: 21.7510272 | L25: 17.3021184 | M25: 13.5727488 | N25: 10.48080384 | O25: 7.9491456 | P25: 5.9056128 | Q25: 4.2830208 | R25: 3.0191616 | S25: 2.05680384 | T25: 1.3436928 | U25: 0.8325504 | V25: 0.4810752 | W25: 0.2519424 | X25: 0.11280384 | Y25: 0.036288 | Z25: 0 | AA25: -0.0134784 | AB25: -0.0165888 | AC25: -0.01679616 | AD25: -0.0165888 | AE25: -0.0134784 | AF25: 6.175615574e-16 | AG25: 0.036288 | AH25: 0.11280384 | AI25: 0.2519424 | AJ25: 0.4810752 | AK25: 0.8325504 | AL25: 1.3436928 | AM25: 2.05680384 | AN25: 3.0191616 | AO25: 4.2830208 | AP25: 5.9056128 | AQ25: 7.9491456 | AR25: 10.48080384 | AS25: 13.5727488 | AT25: 17.3021184 | AU25: 21.7510272 | AV25: 27.0065664 | AW25: 33.16080384 | AX25: 40.310784 | AY25: 48.558528 | AZ25: 58.0110336 | BA25: 68.7802752 | BB25: 80.98320384
C26: =C25+Sheet2!B$13 -> -0.24 | D26: 80.99668224 | E26: 68.7937536 | F26: 58.024512 | G26: 48.5720064 | H26: 40.3242624 | I26: 33.17428224 | J26: 27.0200448 | K26: 21.7645056 | L26: 17.3155968 | M26: 13.5862272 | N26: 10.49428224 | O26: 7.962624 | P26: 5.9190912 | Q26: 4.2964992 | R26: 3.03264 | S26: 2.07028224 | T26: 1.3571712 | U26: 0.8460288 | V26: 0.4945536 | W26: 0.2654208 | X26: 0.12628224 | Y26: 0.0497664 | Z26: 0.0134784 | AA26: 0 | AB26: -0.0031104 | AC26: -0.00331776 | AD26: -0.0031104 | AE26: 1.847480502e-16 | AF26: 0.0134784 | AG26: 0.0497664 | AH26: 0.12628224 | AI26: 0.2654208 | AJ26: 0.4945536 | AK26: 0.8460288 | AL26: 1.3571712 | AM26: 2.07028224 | AN26: 3.03264 | AO26: 4.2964992 | AP26: 5.9190912 | AQ26: 7.962624 | AR26: 10.49428224 | AS26: 13.5862272 | AT26: 17.3155968 | AU26: 21.7645056 | AV26: 27.0200448 | AW26: 33.17428224 | AX26: 40.3242624 | AY26: 48.5720064 | AZ26: 58.024512 | BA26: 68.7937536 | BB26: 80.99668224
C27: =C26+Sheet2!B$13 -> -0.12 | D27: 80.99979264 | E27: 68.796864 | F27: 58.0276224 | G27: 48.5751168 | H27: 40.3273728 | I27: 33.17739264 | J27: 27.0231552 | K27: 21.767616 | L27: 17.3187072 | M27: 13.5893376 | N27: 10.49739264 | O27: 7.9657344 | P27: 5.9222016 | Q27: 4.2996096 | R27: 3.0357504 | S27: 2.07339264 | T27: 1.3602816 | U27: 0.8491392 | V27: 0.497664 | W27: 0.2685312 | X27: 0.12939264 | Y27: 0.0528768 | Z27: 0.0165888 | AA27: 0.0031104 | AB27: 0 | AC27: -0.00020736 | AD27: 2.303929617e-17 | AE27: 0.0031104 | AF27: 0.0165888 | AG27: 0.0528768 | AH27: 0.12939264 | AI27: 0.2685312 | AJ27: 0.497664 | AK27: 0.8491392 | AL27: 1.3602816 | AM27: 2.07339264 | AN27: 3.0357504 | AO27: 4.2996096 | AP27: 5.9222016 | AQ27: 7.9657344 | AR27: 10.49739264 | AS27: 13.5893376 | AT27: 17.3187072 | AU27: 21.767616 | AV27: 27.0231552 | AW27: 33.17739264 | AX27: 40.3273728 | AY27: 48.5751168 | AZ27: 58.0276224 | BA27: 68.796864 | BB27: 80.99979264
C28: =C27+Sheet2!B$13 -> 1.665334537e-15 | D28: 81 | E28: 68.79707136 | F28: 58.02782976 | G28: 48.57532416 | H28: 40.32758016 | I28: 33.1776 | J28: 27.02336256 | K28: 21.76782336 | L28: 17.31891456 | M28: 13.58954496 | N28: 10.4976 | O28: 7.96594176 | P28: 5.92240896 | Q28: 4.29981696 | R28: 3.03595776 | S28: 2.0736 | T28: 1.36048896 | U28: 0.84934656 | V28: 0.49787136 | W28: 0.26873856 | X28: 0.1296 | Y28: 0.05308416 | Z28: 0.01679616 | AA28: 0.00331776 | AB28: 0.00020736 | AC28: 0 | AD28: 0.00020736 | AE28: 0.00331776 | AF28: 0.01679616 | AG28: 0.05308416 | AH28: 0.1296 | AI28: 0.26873856 | AJ28: 0.49787136 | AK28: 0.84934656 | AL28: 1.36048896 | AM28: 2.0736 | AN28: 3.03595776 | AO28: 4.29981696 | AP28: 5.92240896 | AQ28: 7.96594176 | AR28: 10.4976 | AS28: 13.58954496 | AT28: 17.31891456 | AU28: 21.76782336 | AV28: 27.02336256 | AW28: 33.1776 | AX28: 40.32758016 | AY28: 48.57532416 | AZ28: 58.02782976 | BA28: 68.79707136 | BB28: 81
C29: =C28+Sheet2!B$13 -> 0.12 | D29: 80.99979264 | E29: 68.796864 | F29: 58.0276224 | G29: 48.5751168 | H29: 40.3273728 | I29: 33.17739264 | J29: 27.0231552 | K29: 21.767616 | L29: 17.3187072 | M29: 13.5893376 | N29: 10.49739264 | O29: 7.9657344 | P29: 5.9222016 | Q29: 4.2996096 | R29: 3.0357504 | S29: 2.07339264 | T29: 1.3602816 | U29: 0.8491392 | V29: 0.497664 | W29: 0.2685312 | X29: 0.12939264 | Y29: 0.0528768 | Z29: 0.0165888 | AA29: 0.0031104 | AB29: -2.303929617e-17 | AC29: -0.00020736 | AD29: 0 | AE29: 0.0031104 | AF29: 0.0165888 | AG29: 0.0528768 | AH29: 0.12939264 | AI29: 0.2685312 | AJ29: 0.497664 | AK29: 0.8491392 | AL29: 1.3602816 | AM29: 2.07339264 | AN29: 3.0357504 | AO29: 4.2996096 | AP29: 5.9222016 | AQ29: 7.9657344 | AR29: 10.49739264 | AS29: 13.5893376 | AT29: 17.3187072 | AU29: 21.767616 | AV29: 27.0231552 | AW29: 33.17739264 | AX29: 40.3273728 | AY29: 48.5751168 | AZ29: 58.0276224 | BA29: 68.796864 | BB29: 80.99979264
C30: =C29+Sheet2!B$13 -> 0.24 | D30: 80.99668224 | E30: 68.7937536 | F30: 58.024512 | G30: 48.5720064 | H30: 40.3242624 | I30: 33.17428224 | J30: 27.0200448 | K30: 21.7645056 | L30: 17.3155968 | M30: 13.5862272 | N30: 10.49428224 | O30: 7.962624 | P30: 5.9190912 | Q30: 4.2964992 | R30: 3.03264 | S30: 2.07028224 | T30: 1.3571712 | U30: 0.8460288 | V30: 0.4945536 | W30: 0.2654208 | X30: 0.12628224 | Y30: 0.0497664 | Z30: 0.0134784 | AA30: -1.847480502e-16 | AB30: -0.0031104 | AC30: -0.00331776 | AD30: -0.0031104 | AE30: 0 | AF30: 0.0134784 | AG30: 0.0497664 | AH30: 0.12628224 | AI30: 0.2654208 | AJ30: 0.4945536 | AK30: 0.8460288 | AL30: 1.3571712 | AM30: 2.07028224 | AN30: 3.03264 | AO30: 4.2964992 | AP30: 5.9190912 | AQ30: 7.962624 | AR30: 10.49428224 | AS30: 13.5862272 | AT30: 17.3155968 | AU30: 21.7645056 | AV30: 27.0200448 | AW30: 33.17428224 | AX30: 40.3242624 | AY30: 48.5720064 | AZ30: 58.024512 | BA30: 68.7937536 | BB30: 80.99668224
C31: =C30+Sheet2!B$13 -> 0.36 | D31: 80.98320384 | E31: 68.7802752 | F31: 58.0110336 | G31: 48.558528 | H31: 40.310784 | I31: 33.16080384 | J31: 27.0065664 | K31: 21.7510272 | L31: 17.3021184 | M31: 13.5727488 | N31: 10.48080384 | O31: 7.9491456 | P31: 5.9056128 | Q31: 4.2830208 | R31: 3.0191616 | S31: 2.05680384 | T31: 1.3436928 | U31: 0.8325504 | V31: 0.4810752 | W31: 0.2519424 | X31: 0.11280384 | Y31: 0.036288 | Z31: -6.175615574e-16 | AA31: -0.0134784 | AB31: -0.0165888 | AC31: -0.01679616 | AD31: -0.0165888 | AE31: -0.0134784 | AF31: 0 | AG31: 0.036288 | AH31: 0.11280384 | AI31: 0.2519424 | AJ31: 0.4810752 | AK31: 0.8325504 | AL31: 1.3436928 | AM31: 2.05680384 | AN31: 3.0191616 | AO31: 4.2830208 | AP31: 5.9056128 | AQ31: 7.9491456 | AR31: 10.48080384 | AS31: 13.5727488 | AT31: 17.3021184 | AU31: 21.7510272 | AV31: 27.0065664 | AW31: 33.16080384 | AX31: 40.310784 | AY31: 48.558528 | AZ31: 58.0110336 | BA31: 68.7802752 | BB31: 80.98320384
C32: =C31+Sheet2!B$13 -> 0.48 | D32: 80.94691584 | E32: 68.7439872 | F32: 57.9747456 | G32: 48.52224 | H32: 40.274496 | I32: 33.12451584 | J32: 26.9702784 | K32: 21.7147392 | L32: 17.2658304 | M32: 13.5364608 | N32: 10.44451584 | O32: 7.9128576 | P32: 5.8693248 | Q32: 4.2467328 | R32: 2.9828736 | S32: 2.02051584 | T32: 1.3074048 | U32: 0.7962624 | V32: 0.4447872 | W32: 0.2156544 | X32: 0.07651584 | Y32: -1.471045508e-15 | Z32: -0.036288 | AA32: -0.0497664 | AB32: -0.0528768 | AC32: -0.05308416 | AD32: -0.0528768 | AE32: -0.0497664 | AF32: -0.036288 | AG32: 0 | AH32: 0.07651584 | AI32: 0.2156544 | AJ32: 0.4447872 | AK32: 0.7962624 | AL32: 1.3074048 | AM32: 2.02051584 | AN32: 2.9828736 | AO32: 4.2467328 | AP32: 5.8693248 | AQ32: 7.9128576 | AR32: 10.44451584 | AS32: 13.5364608 | AT32: 17.2658304 | AU32: 21.7147392 | AV32: 26.9702784 | AW32: 33.12451584 | AX32: 40.274496 | AY32: 48.52224 | AZ32: 57.9747456 | BA32: 68.7439872 | BB32: 80.94691584
C33: =C32+Sheet2!B$13 -> 0.6 | D33: =x^4-y^4 -> 80.8704 | E33: 68.66747136 | F33: 57.89822976 | G33: 48.44572416 | H33: 40.19798016 | I33: 33.048 | J33: 26.89376256 | K33: 21.63822336 | L33: 17.18931456 | M33: 13.45994496 | N33: =x^4-y^4 -> 10.368 | O33: 7.83634176 | P33: 5.79280896 | Q33: 4.17021696 | R33: 2.90635776 | S33: 1.944 | T33: 1.23088896 | U33: 0.71974656 | V33: 0.36827136 | W33: 0.13913856 | X33: =x^4-y^4 -> -2.886579864e-15 | Y33: -0.07651584 | Z33: -0.11280384 | AA33: -0.12628224 | AB33: -0.12939264 | AC33: -0.1296 | AD33: -0.12939264 | AE33: -0.12628224 | AF33: -0.11280384 | AG33: -0.07651584 | AH33: =x^4-y^4 -> 0 | AI33: 0.13913856 | AJ33: 0.36827136 | AK33: 0.71974656 | AL33: 1.23088896 | AM33: 1.944 | AN33: 2.90635776 | AO33: 4.17021696 | AP33: 5.79280896 | AQ33: 7.83634176 | AR33: =x^4-y^4 -> 10.368 | AS33: 13.45994496 | AT33: 17.18931456 | AU33: 21.63822336 | AV33: 26.89376256 | AW33: 33.048 | AX33: 40.19798016 | AY33: 48.44572416 | AZ33: 57.89822976 | BA33: 68.66747136 | BB33: =x^4-y^4 -> 80.8704 | BL33: =x^4-y^4 ->  | BV33: =x^4-y^4 ->  | CF33: =x^4-y^4 ->  | CP33: =x^4-y^4 ->  | CZ33: =x^4-y^4 ->  | DJ33: =x^4-y^4 ->  | DT33: =x^4-y^4 ->  | ED33: =x^4-y^4 ->  | EN33: =x^4-y^4 ->  | EX33: =x^4-y^4 ->  | FH33: =x^4-y^4 ->  | FR33: =x^4-y^4 ->  | GB33: =x^4-y^4 ->  | GL33: =x^4-y^4 -> 
C34: =C33+Sheet2!B$13 -> 0.72 | D34: 80.73126144 | E34: 68.5283328 | F34: 57.7590912 | G34: 48.3065856 | H34: 40.0588416 | I34: 32.90886144 | J34: 26.754624 | K34: 21.4990848 | L34: 17.050176 | M34: 13.3208064 | N34: 10.22886144 | O34: 7.6972032 | P34: 5.6536704 | Q34: 4.0310784 | R34: 2.7672192 | S34: 1.80486144 | T34: 1.0917504 | U34: 0.580608 | V34: 0.2291328 | W34: -5.051514762e-15 | X34: -0.13913856 | Y34: -0.2156544 | Z34: -0.2519424 | AA34: -0.2654208 | AB34: -0.2685312 | AC34: -0.26873856 | AD34: -0.2685312 | AE34: -0.2654208 | AF34: -0.2519424 | AG34: -0.2156544 | AH34: -0.13913856 | AI34: 0 | AJ34: 0.2291328 | AK34: 0.580608 | AL34: 1.0917504 | AM34: 1.80486144 | AN34: 2.7672192 | AO34: 4.0310784 | AP34: 5.6536704 | AQ34: 7.6972032 | AR34: 10.22886144 | AS34: 13.3208064 | AT34: 17.050176 | AU34: 21.4990848 | AV34: 26.754624 | AW34: 32.90886144 | AX34: 40.0588416 | AY34: 48.3065856 | AZ34: 57.7590912 | BA34: 68.5283328 | BB34: 80.73126144
C35: =C34+Sheet2!B$13 -> 0.84 | D35: 80.50212864 | E35: 68.2992 | F35: 57.5299584 | G35: 48.0774528 | H35: 39.8297088 | I35: 32.67972864 | J35: 26.5254912 | K35: 21.269952 | L35: 16.8210432 | M35: 13.0916736 | N35: 9.99972864 | O35: 7.4680704 | P35: 5.4245376 | Q35: 3.8019456 | R35: 2.5380864 | S35: 1.57572864 | T35: 0.8626176 | U35: 0.3514752 | V35: -7.993605777e-15 | W35: -0.2291328 | X35: -0.36827136 | Y35: -0.4447872 | Z35: -0.4810752 | AA35: -0.4945536 | AB35: -0.497664 | AC35: -0.49787136 | AD35: -0.497664 | AE35: -0.4945536 | AF35: -0.4810752 | AG35: -0.4447872 | AH35: -0.36827136 | AI35: -0.2291328 | AJ35: 0 | AK35: 0.3514752 | AL35: 0.8626176 | AM35: 1.57572864 | AN35: 2.5380864 | AO35: 3.8019456 | AP35: 5.4245376 | AQ35: 7.4680704 | AR35: 9.99972864 | AS35: 13.0916736 | AT35: 16.8210432 | AU35: 21.269952 | AV35: 26.5254912 | AW35: 32.67972864 | AX35: 39.8297088 | AY35: 48.0774528 | AZ35: 57.5299584 | BA35: 68.2992 | BB35: 80.50212864
C36: =C35+Sheet2!B$13 -> 0.96 | D36: 80.15065344 | E36: 67.9477248 | F36: 57.1784832 | G36: 47.7259776 | H36: 39.4782336 | I36: 32.32825344 | J36: 26.174016 | K36: 20.9184768 | L36: 16.469568 | M36: 12.7401984 | N36: 9.64825344 | O36: 7.1165952 | P36: 5.0730624 | Q36: 3.4504704 | R36: 2.1866112 | S36: 1.22425344 | T36: 0.5111424 | U36: -1.165734176e-14 | V36: -0.3514752 | W36: -0.580608 | X36: -0.71974656 | Y36: -0.7962624 | Z36: -0.8325504 | AA36: -0.8460288 | AB36: -0.8491392 | AC36: -0.84934656 | AD36: -0.8491392 | AE36: -0.8460288 | AF36: -0.8325504 | AG36: -0.7962624 | AH36: -0.71974656 | AI36: -0.580608 | AJ36: -0.3514752 | AK36: 0 | AL36: 0.5111424 | AM36: 1.22425344 | AN36: 2.1866112 | AO36: 3.4504704 | AP36: 5.0730624 | AQ36: 7.1165952 | AR36: 9.64825344 | AS36: 12.7401984 | AT36: 16.469568 | AU36: 20.9184768 | AV36: 26.174016 | AW36: 32.32825344 | AX36: 39.4782336 | AY36: 47.7259776 | AZ36: 57.1784832 | BA36: 67.9477248 | BB36: 80.15065344
C37: =C36+Sheet2!B$13 -> 1.08 | D37: 79.63951104 | E37: 67.4365824 | F37: 56.6673408 | G37: 47.2148352 | H37: 38.9670912 | I37: 31.81711104 | J37: 25.6628736 | K37: 20.4073344 | L37: 15.9584256 | M37: 12.229056 | N37: 9.13711104 | O37: 6.6054528 | P37: 4.56192 | Q37: 2.939328 | R37: 1.6754688 | S37: 0.71311104 | T37: -1.665334537e-14 | U37: -0.5111424 | V37: -0.8626176 | W37: -1.0917504 | X37: -1.23088896 | Y37: -1.3074048 | Z37: -1.3436928 | AA37: -1.3571712 | AB37: -1.3602816 | AC37: -1.36048896 | AD37: -1.3602816 | AE37: -1.3571712 | AF37: -1.3436928 | AG37: -1.3074048 | AH37: -1.23088896 | AI37: -1.0917504 | AJ37: -0.8626176 | AK37: -0.5111424 | AL37: 0 | AM37: 0.71311104 | AN37: 1.6754688 | AO37: 2.939328 | AP37: 4.56192 | AQ37: 6.6054528 | AR37: 9.13711104 | AS37: 12.229056 | AT37: 15.9584256 | AU37: 20.4073344 | AV37: 25.6628736 | AW37: 31.81711104 | AX37: 38.9670912 | AY37: 47.2148352 | AZ37: 56.6673408 | BA37: 67.4365824 | BB37: 79.63951104
C38: =C37+Sheet2!B$13 -> 1.2 | D38: 78.9264 | E38: 66.72347136 | F38: 55.95422976 | G38: 46.50172416 | H38: 38.25398016 | I38: 31.104 | J38: 24.94976256 | K38: 19.69422336 | L38: 15.24531456 | M38: 11.51594496 | N38: 8.424 | O38: 5.89234176 | P38: 3.84880896 | Q38: 2.22621696 | R38: 0.96235776 | S38: -2.176037128e-14 | T38: -0.71311104 | U38: -1.22425344 | V38: -1.57572864 | W38: -1.80486144 | X38: -1.944 | Y38: -2.02051584 | Z38: -2.05680384 | AA38: -2.07028224 | AB38: -2.07339264 | AC38: -2.0736 | AD38: -2.07339264 | AE38: -2.07028224 | AF38: -2.05680384 | AG38: -2.02051584 | AH38: -1.944 | AI38: -1.80486144 | AJ38: -1.57572864 | AK38: -1.22425344 | AL38: -0.71311104 | AM38: 0 | AN38: 0.96235776 | AO38: 2.22621696 | AP38: 3.84880896 | AQ38: 5.89234176 | AR38: 8.424 | AS38: 11.51594496 | AT38: 15.24531456 | AU38: 19.69422336 | AV38: 24.94976256 | AW38: 31.104 | AX38: 38.25398016 | AY38: 46.50172416 | AZ38: 55.95422976 | BA38: 66.72347136 | BB38: 78.9264
C39: =C38+Sheet2!B$13 -> 1.32 | D39: 77.96404224 | E39: 65.7611136 | F39: 54.991872 | G39: 45.5393664 | H39: 37.2916224 | I39: 30.14164224 | J39: 23.9874048 | K39: 18.7318656 | L39: 14.2829568 | M39: 10.5535872 | N39: 7.46164224 | O39: 4.929984 | P39: 2.8864512 | Q39: 1.2638592 | R39: -2.886579864e-14 | S39: -0.96235776 | T39: -1.6754688 | U39: -2.1866112 | V39: -2.5380864 | W39: -2.7672192 | X39: -2.90635776 | Y39: -2.9828736 | Z39: -3.0191616 | AA39: -3.03264 | AB39: -3.0357504 | AC39: -3.03595776 | AD39: -3.0357504 | AE39: -3.03264 | AF39: -3.0191616 | AG39: -2.9828736 | AH39: -2.90635776 | AI39: -2.7672192 | AJ39: -2.5380864 | AK39: -2.1866112 | AL39: -1.6754688 | AM39: -0.96235776 | AN39: 0 | AO39: 1.2638592 | AP39: 2.8864512 | AQ39: 4.929984 | AR39: 7.46164224 | AS39: 10.5535872 | AT39: 14.2829568 | AU39: 18.7318656 | AV39: 23.9874048 | AW39: 30.14164224 | AX39: 37.2916224 | AY39: 45.5393664 | AZ39: 54.991872 | BA39: 65.7611136 | BB39: 77.96404224
C40: =C39+Sheet2!B$13 -> 1.44 | D40: 76.70018304 | E40: 64.4972544 | F40: 53.7280128 | G40: 44.2755072 | H40: 36.0277632 | I40: 28.87778304 | J40: 22.7235456 | K40: 17.4680064 | L40: 13.0190976 | M40: 9.289728 | N40: 6.19778304 | O40: 3.6661248 | P40: 1.622592 | Q40: -3.641531521e-14 | R40: -1.2638592 | S40: -2.22621696 | T40: -2.939328 | U40: -3.4504704 | V40: -3.8019456 | W40: -4.0310784 | X40: -4.17021696 | Y40: -4.2467328 | Z40: -4.2830208 | AA40: -4.2964992 | AB40: -4.2996096 | AC40: -4.29981696 | AD40: -4.2996096 | AE40: -4.2964992 | AF40: -4.2830208 | AG40: -4.2467328 | AH40: -4.17021696 | AI40: -4.0310784 | AJ40: -3.8019456 | AK40: -3.4504704 | AL40: -2.939328 | AM40: -2.22621696 | AN40: -1.2638592 | AO40: 0 | AP40: 1.622592 | AQ40: 3.6661248 | AR40: 6.19778304 | AS40: 9.289728 | AT40: 13.0190976 | AU40: 17.4680064 | AV40: 22.7235456 | AW40: 28.87778304 | AX40: 36.0277632 | AY40: 44.2755072 | AZ40: 53.7280128 | BA40: 64.4972544 | BB40: 76.70018304
C41: =C40+Sheet2!B$13 -> 1.56 | D41: 75.07759104 | E41: 62.8746624 | F41: 52.1054208 | G41: 42.6529152 | H41: 34.4051712 | I41: 27.25519104 | J41: 21.1009536 | K41: 15.8454144 | L41: 11.3965056 | M41: 7.667136 | N41: 4.57519104 | O41: 2.0435328 | P41: -4.52970994e-14 | Q41: -1.622592 | R41: -2.8864512 | S41: -3.84880896 | T41: -4.56192 | U41: -5.0730624 | V41: -5.4245376 | W41: -5.6536704 | X41: -5.79280896 | Y41: -5.8693248 | Z41: -5.9056128 | AA41: -5.9190912 | AB41: -5.9222016 | AC41: -5.92240896 | AD41: -5.9222016 | AE41: -5.9190912 | AF41: -5.9056128 | AG41: -5.8693248 | AH41: -5.79280896 | AI41: -5.6536704 | AJ41: -5.4245376 | AK41: -5.0730624 | AL41: -4.56192 | AM41: -3.84880896 | AN41: -2.8864512 | AO41: -1.622592 | AP41: 0 | AQ41: 2.0435328 | AR41: 4.57519104 | AS41: 7.667136 | AT41: 11.3965056 | AU41: 15.8454144 | AV41: 21.1009536 | AW41: 27.25519104 | AX41: 34.4051712 | AY41: 42.6529152 | AZ41: 52.1054208 | BA41: 62.8746624 | BB41: 75.07759104
C42: =C41+Sheet2!B$13 -> 1.68 | D42: 73.03405824 | E42: 60.8311296 | F42: 50.061888 | G42: 40.6093824 | H42: 32.3616384 | I42: 25.21165824 | J42: 19.0574208 | K42: 13.8018816 | L42: 9.3529728 | M42: 5.6236032 | N42: 2.53165824 | O42: -6.039613254e-14 | P42: -2.0435328 | Q42: -3.6661248 | R42: -4.929984 | S42: -5.89234176 | T42: -6.6054528 | U42: -7.1165952 | V42: -7.4680704 | W42: -7.6972032 | X42: -7.83634176 | Y42: -7.9128576 | Z42: -7.9491456 | AA42: -7.962624 | AB42: -7.9657344 | AC42: -7.96594176 | AD42: -7.9657344 | AE42: -7.962624 | AF42: -7.9491456 | AG42: -7.9128576 | AH42: -7.83634176 | AI42: -7.6972032 | AJ42: -7.4680704 | AK42: -7.1165952 | AL42: -6.6054528 | AM42: -5.89234176 | AN42: -4.929984 | AO42: -3.6661248 | AP42: -2.0435328 | AQ42: 0 | AR42: 2.53165824 | AS42: 5.6236032 | AT42: 9.3529728 | AU42: 13.8018816 | AV42: 19.0574208 | AW42: 25.21165824 | AX42: 32.3616384 | AY42: 40.6093824 | AZ42: 50.061888 | BA42: 60.8311296 | BB42: 73.03405824
C43: =C42+Sheet2!B$13 -> 1.8 | D43: =x^4-y^4 -> 70.5024 | E43: 58.29947136 | F43: 47.53022976 | G43: 38.07772416 | H43: 29.82998016 | I43: 22.68 | J43: 16.52576256 | K43: 11.27022336 | L43: 6.82131456 | M43: 3.09194496 | N43: =x^4-y^4 -> -7.283063042e-14 | O43: -2.53165824 | P43: -4.57519104 | Q43: -6.19778304 | R43: -7.46164224 | S43: -8.424 | T43: -9.13711104 | U43: -9.64825344 | V43: -9.99972864 | W43: -10.22886144 | X43: =x^4-y^4 -> -10.368 | Y43: -10.44451584 | Z43: -10.48080384 | AA43: -10.49428224 | AB43: -10.49739264 | AC43: -10.4976 | AD43: -10.49739264 | AE43: -10.49428224 | AF43: -10.48080384 | AG43: -10.44451584 | AH43: =x^4-y^4 -> -10.368 | AI43: -10.22886144 | AJ43: -9.99972864 | AK43: -9.64825344 | AL43: -9.13711104 | AM43: -8.424 | AN43: -7.46164224 | AO43: -6.19778304 | AP43: -4.57519104 | AQ43: -2.53165824 | AR43: =x^4-y^4 -> 0 | AS43: 3.09194496 | AT43: 6.82131456 | AU43: 11.27022336 | AV43: 16.52576256 | AW43: 22.68 | AX43: 29.82998016 | AY43: 38.07772416 | AZ43: 47.53022976 | BA43: 58.29947136 | BB43: =x^4-y^4 -> 70.5024 | BL43: =x^4-y^4 ->  | BV43: =x^4-y^4 ->  | CF43: =x^4-y^4 ->  | CP43: =x^4-y^4 ->  | CZ43: =x^4-y^4 ->  | DJ43: =x^4-y^4 ->  | DT43: =x^4-y^4 ->  | ED43: =x^4-y^4 ->  | EN43: =x^4-y^4 ->  | EX43: =x^4-y^4 ->  | FH43: =x^4-y^4 ->  | FR43: =x^4-y^4 ->  | GB43: =x^4-y^4 ->  | GL43: =x^4-y^4 -> 
C44: =C43+Sheet2!B$13 -> 1.92 | D44: 67.41045504 | E44: 55.2075264 | F44: 44.4382848 | G44: 34.9857792 | H44: 26.7380352 | I44: 19.58805504 | J44: 13.4338176 | K44: 8.1782784 | L44: 3.7293696 | M44: -8.881784197e-14 | N44: -3.09194496 | O44: -5.6236032 | P44: -7.667136 | Q44: -9.289728 | R44: -10.5535872 | S44: -11.51594496 | T44: -12.229056 | U44: -12.7401984 | V44: -13.0916736 | W44: -13.3208064 | X44: -13.45994496 | Y44: -13.5364608 | Z44: -13.5727488 | AA44: -13.5862272 | AB44: -13.5893376 | AC44: -13.58954496 | AD44: -13.5893376 | AE44: -13.5862272 | AF44: -13.5727488 | AG44: -13.5364608 | AH44: -13.45994496 | AI44: -13.3208064 | AJ44: -13.0916736 | AK44: -12.7401984 | AL44: -12.229056 | AM44: -11.51594496 | AN44: -10.5535872 | AO44: -9.289728 | AP44: -7.667136 | AQ44: -5.6236032 | AR44: -3.09194496 | AS44: 0 | AT44: 3.7293696 | AU44: 8.1782784 | AV44: 13.4338176 | AW44: 19.58805504 | AX44: 26.7380352 | AY44: 34.9857792 | AZ44: 44.4382848 | BA44: 55.2075264 | BB44: 67.41045504
C45: =C44+Sheet2!B$13 -> 2.04 | D45: 63.68108544 | E45: 51.4781568 | F45: 40.7089152 | G45: 31.2564096 | H45: 23.0086656 | I45: 15.85868544 | J45: 9.704448 | K45: 4.4489088 | L45: -1.030286967e-13 | M45: -3.7293696 | N45: -6.82131456 | O45: -9.3529728 | P45: -11.3965056 | Q45: -13.0190976 | R45: -14.2829568 | S45: -15.24531456 | T45: -15.9584256 | U45: -16.469568 | V45: -16.8210432 | W45: -17.050176 | X45: -17.18931456 | Y45: -17.2658304 | Z45: -17.3021184 | AA45: -17.3155968 | AB45: -17.3187072 | AC45: -17.31891456 | AD45: -17.3187072 | AE45: -17.3155968 | AF45: -17.3021184 | AG45: -17.2658304 | AH45: -17.18931456 | AI45: -17.050176 | AJ45: -16.8210432 | AK45: -16.469568 | AL45: -15.9584256 | AM45: -15.24531456 | AN45: -14.2829568 | AO45: -13.0190976 | AP45: -11.3965056 | AQ45: -9.3529728 | AR45: -6.82131456 | AS45: -3.7293696 | AT45: 0 | AU45: 4.4489088 | AV45: 9.704448 | AW45: 15.85868544 | AX45: 23.0086656 | AY45: 31.2564096 | AZ45: 40.7089152 | BA45: 51.4781568 | BB45: 63.68108544
C46: =C45+Sheet2!B$13 -> 2.16 | D46: 59.23217664 | E46: 47.029248 | F46: 36.2600064 | G46: 26.8075008 | H46: 18.5597568 | I46: 11.40977664 | J46: 5.2555392 | K46: -1.243449788e-13 | L46: -4.4489088 | M46: -8.1782784 | N46: -11.27022336 | O46: -13.8018816 | P46: -15.8454144 | Q46: -17.4680064 | R46: -18.7318656 | S46: -19.69422336 | T46: -20.4073344 | U46: -20.9184768 | V46: -21.269952 | W46: -21.4990848 | X46: -21.63822336 | Y46: -21.7147392 | Z46: -21.7510272 | AA46: -21.7645056 | AB46: -21.767616 | AC46: -21.76782336 | AD46: -21.767616 | AE46: -21.7645056 | AF46: -21.7510272 | AG46: -21.7147392 | AH46: -21.63822336 | AI46: -21.4990848 | AJ46: -21.269952 | AK46: -20.9184768 | AL46: -20.4073344 | AM46: -19.69422336 | AN46: -18.7318656 | AO46: -17.4680064 | AP46: -15.8454144 | AQ46: -13.8018816 | AR46: -11.27022336 | AS46: -8.1782784 | AT46: -4.4489088 | AU46: 0 | AV46: 5.2555392 | AW46: 11.40977664 | AX46: 18.5597568 | AY46: 26.8075008 | AZ46: 36.2600064 | BA46: 47.029248 | BB46: 59.23217664
C47: =C46+Sheet2!B$13 -> 2.28 | D47: 53.97663744 | E47: 41.7737088 | F47: 31.0044672 | G47: 21.5519616 | H47: 13.3042176 | I47: 6.15423744 | J47: -1.492139745e-13 | K47: -5.2555392 | L47: -9.704448 | M47: -13.4338176 | N47: -16.52576256 | O47: -19.0574208 | P47: -21.1009536 | Q47: -22.7235456 | R47: -23.9874048 | S47: -24.94976256 | T47: -25.6628736 | U47: -26.174016 | V47: -26.5254912 | W47: -26.754624 | X47: -26.89376256 | Y47: -26.9702784 | Z47: -27.0065664 | AA47: -27.0200448 | AB47: -27.0231552 | AC47: -27.02336256 | AD47: -27.0231552 | AE47: -27.0200448 | AF47: -27.0065664 | AG47: -26.9702784 | AH47: -26.89376256 | AI47: -26.754624 | AJ47: -26.5254912 | AK47: -26.174016 | AL47: -25.6628736 | AM47: -24.94976256 | AN47: -23.9874048 | AO47: -22.7235456 | AP47: -21.1009536 | AQ47: -19.0574208 | AR47: -16.52576256 | AS47: -13.4338176 | AT47: -9.704448 | AU47: -5.2555392 | AV47: 0 | AW47: 6.15423744 | AX47: 13.3042176 | AY47: 21.5519616 | AZ47: 31.0044672 | BA47: 41.7737088 | BB47: 53.97663744
C48: =C47+Sheet2!B$13 -> 2.4 | D48: 47.8224 | E48: 35.61947136 | F48: 24.85022976 | G48: 15.39772416 | H48: 7.14998016 | I48: -1.705302566e-13 | J48: -6.15423744 | K48: -11.40977664 | L48: -15.85868544 | M48: -19.58805504 | N48: -22.68 | O48: -25.21165824 | P48: -27.25519104 | Q48: -28.87778304 | R48: -30.14164224 | S48: -31.104 | T48: -31.81711104 | U48: -32.32825344 | V48: -32.67972864 | W48: -32.90886144 | X48: -33.048 | Y48: -33.12451584 | Z48: -33.16080384 | AA48: -33.17428224 | AB48: -33.17739264 | AC48: -33.1776 | AD48: -33.17739264 | AE48: -33.17428224 | AF48: -33.16080384 | AG48: -33.12451584 | AH48: -33.048 | AI48: -32.90886144 | AJ48: -32.67972864 | AK48: -32.32825344 | AL48: -31.81711104 | AM48: -31.104 | AN48: -30.14164224 | AO48: -28.87778304 | AP48: -27.25519104 | AQ48: -25.21165824 | AR48: -22.68 | AS48: -19.58805504 | AT48: -15.85868544 | AU48: -11.40977664 | AV48: -6.15423744 | AW48: 0 | AX48: 7.14998016 | AY48: 15.39772416 | AZ48: 24.85022976 | BA48: 35.61947136 | BB48: 47.8224
C49: =C48+Sheet2!B$13 -> 2.52 | D49: 40.67241984 | E49: 28.4694912 | F49: 17.7002496 | G49: 8.247744 | H49: -1.98951966e-13 | I49: -7.14998016 | J49: -13.3042176 | K49: -18.5597568 | L49: -23.0086656 | M49: -26.7380352 | N49: -29.82998016 | O49: -32.3616384 | P49: -34.4051712 | Q49: -36.0277632 | R49: -37.2916224 | S49: -38.25398016 | T49: -38.9670912 | U49: -39.4782336 | V49: -39.8297088 | W49: -40.0588416 | X49: -40.19798016 | Y49: -40.274496 | Z49: -40.310784 | AA49: -40.3242624 | AB49: -40.3273728 | AC49: -40.32758016 | AD49: -40.3273728 | AE49: -40.3242624 | AF49: -40.310784 | AG49: -40.274496 | AH49: -40.19798016 | AI49: -40.0588416 | AJ49: -39.8297088 | AK49: -39.4782336 | AL49: -38.9670912 | AM49: -38.25398016 | AN49: -37.2916224 | AO49: -36.0277632 | AP49: -34.4051712 | AQ49: -32.3616384 | AR49: -29.82998016 | AS49: -26.7380352 | AT49: -23.0086656 | AU49: -18.5597568 | AV49: -13.3042176 | AW49: -7.14998016 | AX49: 0 | AY49: 8.247744 | AZ49: 17.7002496 | BA49: 28.4694912 | BB49: 40.67241984
C50: =C49+Sheet2!B$13 -> 2.64 | D50: 32.42467584 | E50: 20.2217472 | F50: 9.4525056 | G50: -2.344791028e-13 | H50: -8.247744 | I50: -15.39772416 | J50: -21.5519616 | K50: -26.8075008 | L50: -31.2564096 | M50: -34.9857792 | N50: -38.07772416 | O50: -40.6093824 | P50: -42.6529152 | Q50: -44.2755072 | R50: -45.5393664 | S50: -46.50172416 | T50: -47.2148352 | U50: -47.7259776 | V50: -48.0774528 | W50: -48.3065856 | X50: -48.44572416 | Y50: -48.52224 | Z50: -48.558528 | AA50: -48.5720064 | AB50: -48.5751168 | AC50: -48.57532416 | AD50: -48.5751168 | AE50: -48.5720064 | AF50: -48.558528 | AG50: -48.52224 | AH50: -48.44572416 | AI50: -48.3065856 | AJ50: -48.0774528 | AK50: -47.7259776 | AL50: -47.2148352 | AM50: -46.50172416 | AN50: -45.5393664 | AO50: -44.2755072 | AP50: -42.6529152 | AQ50: -40.6093824 | AR50: -38.07772416 | AS50: -34.9857792 | AT50: -31.2564096 | AU50: -26.8075008 | AV50: -21.5519616 | AW50: -15.39772416 | AX50: -8.247744 | AY50: 0 | AZ50: 9.4525056 | BA50: 20.2217472 | BB50: 32.42467584
C51: =C50+Sheet2!B$13 -> 2.76 | D51: 22.97217024 | E51: 10.7692416 | F51: -2.700062396e-13 | G51: -9.4525056 | H51: -17.7002496 | I51: -24.85022976 | J51: -31.0044672 | K51: -36.2600064 | L51: -40.7089152 | M51: -44.4382848 | N51: -47.53022976 | O51: -50.061888 | P51: -52.1054208 | Q51: -53.7280128 | R51: -54.991872 | S51: -55.95422976 | T51: -56.6673408 | U51: -57.1784832 | V51: -57.5299584 | W51: -57.7590912 | X51: -57.89822976 | Y51: -57.9747456 | Z51: -58.0110336 | AA51: -58.024512 | AB51: -58.0276224 | AC51: -58.02782976 | AD51: -58.0276224 | AE51: -58.024512 | AF51: -58.0110336 | AG51: -57.9747456 | AH51: -57.89822976 | AI51: -57.7590912 | AJ51: -57.5299584 | AK51: -57.1784832 | AL51: -56.6673408 | AM51: -55.95422976 | AN51: -54.991872 | AO51: -53.7280128 | AP51: -52.1054208 | AQ51: -50.061888 | AR51: -47.53022976 | AS51: -44.4382848 | AT51: -40.7089152 | AU51: -36.2600064 | AV51: -31.0044672 | AW51: -24.85022976 | AX51: -17.7002496 | AY51: -9.4525056 | AZ51: 0 | BA51: 10.7692416 | BB51: 22.97217024
C52: =C51+Sheet2!B$13 -> 2.88 | D52: 12.20292864 | E52: -2.98427949e-13 | F52: -10.7692416 | G52: -20.2217472 | H52: -28.4694912 | I52: -35.61947136 | J52: -41.7737088 | K52: -47.029248 | L52: -51.4781568 | M52: -55.2075264 | N52: -58.29947136 | O52: -60.8311296 | P52: -62.8746624 | Q52: -64.4972544 | R52: -65.7611136 | S52: -66.72347136 | T52: -67.4365824 | U52: -67.9477248 | V52: -68.2992 | W52: -68.5283328 | X52: -68.66747136 | Y52: -68.7439872 | Z52: -68.7802752 | AA52: -68.7937536 | AB52: -68.796864 | AC52: -68.79707136 | AD52: -68.796864 | AE52: -68.7937536 | AF52: -68.7802752 | AG52: -68.7439872 | AH52: -68.66747136 | AI52: -68.5283328 | AJ52: -68.2992 | AK52: -67.9477248 | AL52: -67.4365824 | AM52: -66.72347136 | AN52: -65.7611136 | AO52: -64.4972544 | AP52: -62.8746624 | AQ52: -60.8311296 | AR52: -58.29947136 | AS52: -55.2075264 | AT52: -51.4781568 | AU52: -47.029248 | AV52: -41.7737088 | AW52: -35.61947136 | AX52: -28.4694912 | AY52: -20.2217472 | AZ52: -10.7692416 | BA52: 0 | BB52: 12.20292864
C53: =C52+Sheet2!B$13 -> 3 | D53: =x^4-y^4 -> -3.126388037e-13 | E53: -12.20292864 | F53: -22.97217024 | G53: -32.42467584 | H53: -40.67241984 | I53: -47.8224 | J53: -53.97663744 | K53: -59.23217664 | L53: -63.68108544 | M53: -67.41045504 | N53: =x^4-y^4 -> -70.5024 | O53: -73.03405824 | P53: -75.07759104 | Q53: -76.70018304 | R53: -77.96404224 | S53: -78.9264 | T53: -79.63951104 | U53: -80.15065344 | V53: -80.50212864 | W53: -80.73126144 | X53: =x^4-y^4 -> -80.8704 | Y53: -80.94691584 | Z53: -80.98320384 | AA53: -80.99668224 | AB53: -80.99979264 | AC53: -81 | AD53: -80.99979264 | AE53: -80.99668224 | AF53: -80.98320384 | AG53: -80.94691584 | AH53: =x^4-y^4 -> -80.8704 | AI53: -80.73126144 | AJ53: -80.50212864 | AK53: -80.15065344 | AL53: -79.63951104 | AM53: -78.9264 | AN53: -77.96404224 | AO53: -76.70018304 | AP53: -75.07759104 | AQ53: -73.03405824 | AR53: =x^4-y^4 -> -70.5024 | AS53: -67.41045504 | AT53: -63.68108544 | AU53: -59.23217664 | AV53: -53.97663744 | AW53: -47.8224 | AX53: -40.67241984 | AY53: -32.42467584 | AZ53: -22.97217024 | BA53: -12.20292864 | BB53: =x^4-y^4 -> 0 | BL53: =x^4-y^4 ->  | BV53: =x^4-y^4 ->  | CF53: =x^4-y^4 ->  | CP53: =x^4-y^4 ->  | CZ53: =x^4-y^4 ->  | DJ53: =x^4-y^4 ->  | DT53: =x^4-y^4 ->  | ED53: =x^4-y^4 ->  | EN53: =x^4-y^4 ->  | EX53: =x^4-y^4 ->  | FH53: =x^4-y^4 ->  | FR53: =x^4-y^4 ->  | GB53: =x^4-y^4 ->  | GL53: =x^4-y^4 -> 
D63: =x^4-y^4 ->  | N63: =x^4-y^4 ->  | X63: =x^4-y^4 ->  | AH63: =x^4-y^4 ->  | AR63: =x^4-y^4 ->  | BB63: =x^4-y^4 ->  | BL63: =x^4-y^4 ->  | BV63: =x^4-y^4 ->  | CF63: =x^4-y^4 ->  | CP63: =x^4-y^4 ->  | CZ63: =x^4-y^4 ->  | DJ63: =x^4-y^4 ->  | DT63: =x^4-y^4 ->  | ED63: =x^4-y^4 ->  | EN63: =x^4-y^4 ->  | EX63: =x^4-y^4 ->  | FH63: =x^4-y^4 ->  | FR63: =x^4-y^4 ->  | GB63: =x^4-y^4 ->  | GL63: =x^4-y^4 -> 
D73: =x^4-y^4 ->  | N73: =x^4-y^4 ->  | X73: =x^4-y^4 ->  | AH73: =x^4-y^4 ->  | AR73: =x^4-y^4 ->  | BB73: =x^4-y^4 ->  | BL73: =x^4-y^4 ->  | BV73: =x^4-y^4 ->  | CF73: =x^4-y^4 ->  | CP73: =x^4-y^4 ->  | CZ73: =x^4-y^4 ->  | DJ73: =x^4-y^4 ->  | DT73: =x^4-y^4 ->  | ED73: =x^4-y^4 ->  | EN73: =x^4-y^4 ->  | EX73: =x^4-y^4 ->  | FH73: =x^4-y^4 ->  | FR73: =x^4-y^4 ->  | GB73: =x^4-y^4 ->  | GL73: =x^4-y^4 -> 
D83: =x^4-y^4 ->  | N83: =x^4-y^4 ->  | X83: =x^4-y^4 ->  | AH83: =x^4-y^4 ->  | AR83: =x^4-y^4 ->  | BB83: =x^4-y^4 ->  | BL83: =x^4-y^4 ->  | BV83: =x^4-y^4 ->  | CF83: =x^4-y^4 ->  | CP83: =x^4-y^4 ->  | CZ83: =x^4-y^4 ->  | DJ83: =x^4-y^4 ->  | DT83: =x^4-y^4 ->  | ED83: =x^4-y^4 ->  | EN83: =x^4-y^4 ->  | EX83: =x^4-y^4 ->  | FH83: =x^4-y^4 ->  | FR83: =x^4-y^4 ->  | GB83: =x^4-y^4 ->  | GL83: =x^4-y^4 -> 
D93: =x^4-y^4 ->  | N93: =x^4-y^4 ->  | X93: =x^4-y^4 ->  | AH93: =x^4-y^4 ->  | AR93: =x^4-y^4 ->  | BB93: =x^4-y^4 ->  | BL93: =x^4-y^4 ->  | BV93: =x^4-y^4 ->  | CF93: =x^4-y^4 ->  | CP93: =x^4-y^4 ->  | CZ93: =x^4-y^4 ->  | DJ93: =x^4-y^4 ->  | DT93: =x^4-y^4 ->  | ED93: =x^4-y^4 ->  | EN93: =x^4-y^4 ->  | EX93: =x^4-y^4 ->  | FH93: =x^4-y^4 ->  | FR93: =x^4-y^4 ->  | GB93: =x^4-y^4 ->  | GL93: =x^4-y^4 -> 
D103: =x^4-y^4 ->  | N103: =x^4-y^4 ->  | X103: =x^4-y^4 ->  | AH103: =x^4-y^4 ->  | AR103: =x^4-y^4 ->  | BB103: =x^4-y^4 ->  | BL103: =x^4-y^4 ->  | BV103: =x^4-y^4 ->  | CF103: =x^4-y^4 ->  | CP103: =x^4-y^4 ->  | CZ103: =x^4-y^4 ->  | DJ103: =x^4-y^4 ->  | DT103: =x^4-y^4 ->  | ED103: =x^4-y^4 ->  | EN103: =x^4-y^4 ->  | EX103: =x^4-y^4 ->  | FH103: =x^4-y^4 ->  | FR103: =x^4-y^4 ->  | GB103: =x^4-y^4 ->  | GL103: =x^4-y^4 -> 
D113: =x^4-y^4 ->  | N113: =x^4-y^4 ->  | X113: =x^4-y^4 ->  | AH113: =x^4-y^4 ->  | AR113: =x^4-y^4 ->  | BB113: =x^4-y^4 ->  | BL113: =x^4-y^4 ->  | BV113: =x^4-y^4 ->  | CF113: =x^4-y^4 ->  | CP113: =x^4-y^4 ->  | CZ113: =x^4-y^4 ->  | DJ113: =x^4-y^4 ->  | DT113: =x^4-y^4 ->  | ED113: =x^4-y^4 ->  | EN113: =x^4-y^4 ->  | EX113: =x^4-y^4 ->  | FH113: =x^4-y^4 ->  | FR113: =x^4-y^4 ->  | GB113: =x^4-y^4 ->  | GL113: =x^4-y^4 -> 
D123: =x^4-y^4 ->  | N123: =x^4-y^4 ->  | X123: =x^4-y^4 ->  | AH123: =x^4-y^4 ->  | AR123: =x^4-y^4 ->  | BB123: =x^4-y^4 ->  | BL123: =x^4-y^4 ->  | BV123: =x^4-y^4 ->  | CF123: =x^4-y^4 ->  | CP123: =x^4-y^4 ->  | CZ123: =x^4-y^4 ->  | DJ123: =x^4-y^4 ->  | DT123: =x^4-y^4 ->  | ED123: =x^4-y^4 ->  | EN123: =x^4-y^4 ->  | EX123: =x^4-y^4 ->  | FH123: =x^4-y^4 ->  | FR123: =x^4-y^4 ->  | GB123: =x^4-y^4 ->  | GL123: =x^4-y^4 -> 
D133: =x^4-y^4 ->  | N133: =x^4-y^4 ->  | X133: =x^4-y^4 ->  | AH133: =x^4-y^4 ->  | AR133: =x^4-y^4 ->  | BB133: =x^4-y^4 ->  | BL133: =x^4-y^4 ->  | BV133: =x^4-y^4 ->  | CF133: =x^4-y^4 ->  | CP133: =x^4-y^4 ->  | CZ133: =x^4-y^4 ->  | DJ133: =x^4-y^4 ->  | DT133: =x^4-y^4 ->  | ED133: =x^4-y^4 ->  | EN133: =x^4-y^4 ->  | EX133: =x^4-y^4 ->  | FH133: =x^4-y^4 ->  | FR133: =x^4-y^4 ->  | GB133: =x^4-y^4 ->  | GL133: =x^4-y^4 -> 
D143: =x^4-y^4 ->  | N143: =x^4-y^4 ->  | X143: =x^4-y^4 ->  | AH143: =x^4-y^4 ->  | AR143: =x^4-y^4 ->  | BB143: =x^4-y^4 ->  | BL143: =x^4-y^4 ->  | BV143: =x^4-y^4 ->  | CF143: =x^4-y^4 ->  | CP143: =x^4-y^4 ->  | CZ143: =x^4-y^4 ->  | DJ143: =x^4-y^4 ->  | DT143: =x^4-y^4 ->  | ED143: =x^4-y^4 ->  | EN143: =x^4-y^4 ->  | EX143: =x^4-y^4 ->  | FH143: =x^4-y^4 ->  | FR143: =x^4-y^4 ->  | GB143: =x^4-y^4 ->  | GL143: =x^4-y^4 -> 
D153: =x^4-y^4 ->  | N153: =x^4-y^4 ->  | X153: =x^4-y^4 ->  | AH153: =x^4-y^4 ->  | AR153: =x^4-y^4 ->  | BB153: =x^4-y^4 ->  | BL153: =x^4-y^4 ->  | BV153: =x^4-y^4 ->  | CF153: =x^4-y^4 ->  | CP153: =x^4-y^4 ->  | CZ153: =x^4-y^4 ->  | DJ153: =x^4-y^4 ->  | DT153: =x^4-y^4 ->  | ED153: =x^4-y^4 ->  | EN153: =x^4-y^4 ->  | EX153: =x^4-y^4 ->  | FH153: =x^4-y^4 ->  | FR153: =x^4-y^4 ->  | GB153: =x^4-y^4 ->  | GL153: =x^4-y^4 -> 
D163: =x^4-y^4 ->  | N163: =x^4-y^4 ->  | X163: =x^4-y^4 ->  | AH163: =x^4-y^4 ->  | AR163: =x^4-y^4 ->  | BB163: =x^4-y^4 ->  | BL163: =x^4-y^4 ->  | BV163: =x^4-y^4 ->  | CF163: =x^4-y^4 ->  | CP163: =x^4-y^4 ->  | CZ163: =x^4-y^4 ->  | DJ163: =x^4-y^4 ->  | DT163: =x^4-y^4 ->  | ED163: =x^4-y^4 ->  | EN163: =x^4-y^4 ->  | EX163: =x^4-y^4 ->  | FH163: =x^4-y^4 ->  | FR163: =x^4-y^4 ->  | GB163: =x^4-y^4 ->  | GL163: =x^4-y^4 -> 
D173: =x^4-y^4 ->  | N173: =x^4-y^4 ->  | X173: =x^4-y^4 ->  | AH173: =x^4-y^4 ->  | AR173: =x^4-y^4 ->  | BB173: =x^4-y^4 ->  | BL173: =x^4-y^4 ->  | BV173: =x^4-y^4 ->  | CF173: =x^4-y^4 ->  | CP173: =x^4-y^4 ->  | CZ173: =x^4-y^4 ->  | DJ173: =x^4-y^4 ->  | DT173: =x^4-y^4 ->  | ED173: =x^4-y^4 ->  | EN173: =x^4-y^4 ->  | EX173: =x^4-y^4 ->  | FH173: =x^4-y^4 ->  | FR173: =x^4-y^4 ->  | GB173: =x^4-y^4 ->  | GL173: =x^4-y^4 -> 
D183: =x^4-y^4 ->  | N183: =x^4-y^4 ->  | X183: =x^4-y^4 ->  | AH183: =x^4-y^4 ->  | AR183: =x^4-y^4 ->  | BB183: =x^4-y^4 ->  | BL183: =x^4-y^4 ->  | BV183: =x^4-y^4 ->  | CF183: =x^4-y^4 ->  | CP183: =x^4-y^4 ->  | CZ183: =x^4-y^4 ->  | DJ183: =x^4-y^4 ->  | DT183: =x^4-y^4 ->  | ED183: =x^4-y^4 ->  | EN183: =x^4-y^4 ->  | EX183: =x^4-y^4 ->  | FH183: =x^4-y^4 ->  | FR183: =x^4-y^4 ->  | GB183: =x^4-y^4 ->  | GL183: =x^4-y^4 -> 
D193: =x^4-y^4 ->  | N193: =x^4-y^4 ->  | X193: =x^4-y^4 ->  | AH193: =x^4-y^4 ->  | AR193: =x^4-y^4 ->  | BB193: =x^4-y^4 ->  | BL193: =x^4-y^4 ->  | BV193: =x^4-y^4 ->  | CF193: =x^4-y^4 ->  | CP193: =x^4-y^4 ->  | CZ193: =x^4-y^4 ->  | DJ193: =x^4-y^4 ->  | DT193: =x^4-y^4 ->  | ED193: =x^4-y^4 ->  | EN193: =x^4-y^4 ->  | EX193: =x^4-y^4 ->  | FH193: =x^4-y^4 ->  | FR193: =x^4-y^4 ->  | GB193: =x^4-y^4 ->  | GL193: =x^4-y^4 -> 

Sheet Defining Function
A1: Defining a Function in Excel
A3: Computers have very specific rules you must follow when defining a function. If you don't, the program will either not work at all or will work incorrectly.
A5: 1. The Variable used should be the one named in the instruction, usually x, though sometimes y, t, Q (for an angle theta),
A6: or even x and y (for a function of two variables).
A8: 2. Order of Operations: There five arithmetic operations, addition (+), subtraction (-), multiplication (*), division (/), and exponentiation or power (^). When computers see any of these operation symbols, they perform the indicated steps in a very particular order. First, the power is done. Second, products and quotients of adjacent terms is done. Third, and last, sums and differences of adjacent terms are done. So, in 10*x^3 + 5*x – 7, say with x = 2, the first pass only calculates 2^3 and ignores the multiplications and the sums and differences to calculate 2^3 = 8. The second pass looks at 10*8 + 5*2 – 7 and only does the multiplications, so it produces 80 + 10 - 7. The third pass looks at the +’s and –‘s to produce 80 + 10 – 7 = 83.
A10: 3. Parentheses If you need an operation involving more than two adjacent terms, as in Ö4^3 + 6^2, the computer would take the square root of 4 to produce 2^3 + 6^2; it would then cube the 2 and square the 6 to produce 8 + 36; and finally it would add the 8 and the 36 to get 44. If you actually wanted the square root of the entire expression, you would need to use parentheses, as in Ö(4^3 + 6^2) to tell the computer to do all the operations inside the parentheses before taking the square root. Therefore, it would calculate (4^3 + 6^2) = 64 + 36 = 100 and then take the square root of Ö100 = 10.
A12: 4. Built-In Functions Computer programs have built-in functions for most common algebraic functions. In Excel, the square root function is denoted by SQRT(…), so SQRT(100) = 10. Alternatively, you could enter it as 100^.5 or 100^(1/2); notice that parentheses are needed to have the ½ done first. The common trig functions are SIN (…), COS (…), and TAN (…), where the arguments are automatically interpreted as being in radians, not degrees. The logarithm to the base 10 is represented by LOG (…) and the logarithm with the base e, known as the natural logarithm, is LN (…). The corresponding exponential function with base e is EXP (x). If x is the variable, then each of these would be SQRT (x), SIN (x), COS (x), TAN (x), LOG (x) (for log with base 10 ), LN (x) (for log with base e ), and EXP (x).

Sheet Sheet3
